[Event "18th Caspian Cup-A 2020"]
[Site "Rasht"]
[Date "2020.02.19"]
[Round "9.2"]
[White "Tahbaz, Arash"]
[Black "Harutjunyan, Gevorg"]
[Result "1-0"]
[ECO "A48"]
[WhiteElo "2461"]
[BlackElo "2444"]
[Annotator "ChessBase"]
[PlyCount "115"]
[EventDate "2020.02.14"]
[EventType "swiss"]
[EventCountry "IRI"]
[SourceTitle "playchess.com"]
[Source "ChessBase"]
[SourceQuality "1"]
[TimeControl "5400+30"]

1. d4 {[%emt 0:00:38]} Nf6 {[%emt 0:00:04]} 2. Nf3 {[%emt 0:00:27]} g6 {[%emt 0:01:10]} 3. Bg5 {[%emt 0:01:08]} Bg7 {[%emt 0:00:14]} 4. Nbd2 {[%emt 0:00:03]} O-O {[%emt 0:00:35]} 5. c3 {[%emt 0:00:08]} d6 {[%emt 0:00:32]} 6. e4 {[%emt 0:00:06]} c5 {[%emt 0:00:58]} 7. dxc5 {[%emt 0:00:05]} dxc5 {[%emt 0:00:05]} 8. Bc4 {[%emt 0:00:06]} Nc6 {[%emt 0:00:25]} 9. Qe2 {[%emt 0:00:09]} Qc7 {[%emt 0:01:33]} 10. O-O {[%emt 0:00:05]} b6 {[%emt 0:00:30]} 11. Rfe1 {[%emt 0:07:20]} h6 {[%emt 0:01:27]} 12. Bh4 {[%emt 0:04:57]} Nh5 {[%emt 0:01:23]} 13. e5 {[%emt 0:01:28]} Na5 {[%emt 0:05:13]} 14. Bb5 {[%emt 0:05:50]} a6 {[%emt 0:02:49]} 15. Ba4 {[%emt 0:00:20]} Bf5 {[%emt 0:00:05]} 16. Ne4 {[%emt 0:06:02]} Nf4 {[%emt 0:03:40]} 17. Qe3 {[%emt 0:01:39]} g5 {[%emt 0:02:59]} 18. Bg3 {[%emt 0:02:52]} Nc4 {[%emt 0:00:44]} 19. Qc1 {[%emt 0:02:04]} Nd3 {[%emt 0:01:03]} 20. Qc2 {[%emt 0:00:30]} Nxe1 {[%emt 0:03:07]} 21. Rxe1 {[%emt 0:00:04]} e6 {[%emt 0:00:54]} 22. Qe2 {[%emt 0:00:11]} b5 {[%emt 0:01:45]} 23. Bb3 {[%emt 0:00:29]} Qc6 {[%emt 0:04:13]} 24. Nf6+ {[%emt 0:10:17]} Bxf6 {[%emt 0:01:58]} 25. exf6 {[%emt 0:01:01]} g4 {[%emt 0:00:51]} 26. Nh4 {[%emt 0:10:32]} Rad8 {[%emt 0:04:05]} 27. Bf4 {[%emt 0:13:55]} h5 {[%emt 0:07:37]} 28. Bxc4 {[%emt 0:21:32]} bxc4 {[%emt 0:00:15]} 29. Bh6 {[%emt 0:00:11]} Rfe8 {[%emt 0:14:14]} 30. h3 {[%emt 0:05:25]} Qd5 {[%emt 0:03:00]} 31. Qe3 {[%emt 0:00:01]} Bg6 {[%emt 0:04:53]} 32. Qf4 {[%emt 0:02:17]} e5 {[%emt 0:03:14]} 33. Qg5 {[%emt 0:00:00]} e4 {[%emt 0:00:30]} 34. Nxg6 {[%emt 0:03:24]} Qxg5 {[%emt 0:00:27]} 35. Bxg5 {[%emt 0:00:02]} fxg6 {[%emt 0:00:19]} 36. f7+ {[%emt 0:00:02]} Kxf7 {[%emt 0:00:05]} 37. Bxd8 {[%emt 0:00:04]} Rxd8 {[%emt 0:00:03]} 38. hxg4 {[%emt 0:00:02]} hxg4 {[%emt 0:03:13]} 39. Rxe4 {[%emt 0:00:20]} Rd1+ {[%emt 0:01:08]} 40. Kh2 {[%emt 0:00:01]} Rd2 {[%emt 0:00:06]} 41. Kg3 {[%emt 0:02:03]} Rxb2 {[%emt 0:00:20]} 42. a4 {[%emt 0:00:20]} Ra2 {[%emt 0:02:42]} 43. Rxc4 {[%emt 0:00:11]} Kf6 {[%emt 0:00:58]} 44. Rf4+ {[%emt 0:00:12]} Ke5 {[%emt 0:01:57]} 45. Rxg4 {[%emt 0:00:03]} Kd5 {[%emt 0:00:45]} 46. Rg5+ {[%emt 0:01:06]} Kc4 {[%emt 0:00:22]} 47. Rxg6 {[%emt 0:00:03]} a5 {[%emt 0:00:48]} 48. f4 {[%emt 0:01:00]} Rxa4 {[%emt 0:01:32]} 49. f5 {[%emt 0:01:27]} Kd5 {[%emt 0:01:15]} 50. Re6 {[%emt 0:00:46]} Ra1 {[%emt 0:00:46]} 51. Kf2 {[%emt 0:01:59]} a4 {[%emt 0:04:10]} 52. Re2 {[%emt 0:00:28]} a3 {[%emt 0:00:29]} 53. f6 {[%emt 0:00:03]} a2 {[%emt 0:12:55]} 54. f7 {[%emt 0:00:02]} Rf1+ {[%emt 0:02:53]} 55. Kxf1 {[%emt 0:00:04]} a1=Q+ {[%emt 0:00:04]} 56. Kf2 {[%emt 0:00:05]} Qa8 {[%emt 0:00:57]} 57. Re8 {[%emt 0:00:06]} Qa2+ {[%emt 0:00:09]} 58. Kg3 {[%emt 0:00:05]} 1-0

[Event "18th Caspian Cup-A 2020"]
[Site "Rasht"]
[Date "2020.02.19"]
[Round "9.4"]
[White "Daneshvar, Bardiya"]
[Black "Mosadeghpour, Masoud"]
[Result "1-0"]
[ECO "A14"]
[WhiteElo "2327"]
[BlackElo "2499"]
[Annotator "ChessBase"]
[PlyCount "111"]
[EventDate "2020.02.14"]
[EventType "swiss"]
[EventCountry "IRI"]
[SourceTitle "playchess.com"]
[Source "ChessBase"]
[SourceQuality "1"]
[TimeControl "5400+30"]

1. Nf3 {[%emt 0:00:00]} Nf6 {[%emt 0:03:06]} 2. c4 {[%emt 0:00:00]} e6 {[%emt 0:00:16]} 3. g3 {[%emt 0:00:59]} d5 {[%emt 0:00:11]} 4. Bg2 {[%emt 0:00:10]} Be7 {[%emt 0:00:48]} 5. O-O {[%emt 0:00:38]} O-O {[%emt 0:00:19]} 6. b3 {[%emt 0:02:05]} a5 {[%emt 0:01:55]} 7. Nc3 {[%emt 0:00:13]} Nbd7 {[%emt 0:02:31]} 8. d4 {[%emt 0:02:52]} Nb6 {[%emt 0:11:49]} 9. Qd3 {[%emt 0:03:43]} c5 {[%emt 0:05:54]} 10. Be3 {[%emt 0:15:45]} dxc4 {[%emt 0:02:27]} 11. bxc4 {[%emt 0:00:56]} Ng4 {[%emt 0:01:50]} 12. Rab1 {[%emt 0:04:21]} Nd7 {[%emt 0:10:11]} 13. d5 {[%emt 0:17:26]} Nxe3 {[%emt 0:14:58]} 14. Qxe3 {[%emt 0:02:12]} Nb6 {[%emt 0:04:36]} 15. Qd3 {[%emt 0:01:11]} exd5 {[%emt 0:00:22]} 16. Nxd5 {[%emt 0:02:58]} Nxd5 {[%emt 0:00:33]} 17. cxd5 {[%emt 0:00:16]} b6 {[%emt 0:02:01]} 18. Ne5 {[%emt 0:06:07]} Ba6 {[%emt 0:02:17]} 19. Qb3 {[%emt 0:04:38]} Bd6 {[%emt 0:05:46]} 20. Nc6 {[%emt 0:02:21]} Qc7 {[%emt 0:03:03]} 21. Qxb6 {[%emt 0:00:37]} Qxb6 {[%emt 0:00:55]} 22. Rxb6 {[%emt 0:00:02]} Bxe2 {[%emt 0:00:15]} 23. Re1 {[%emt 0:01:53]} Bd3 {[%emt 0:10:28]} 24. Bf1 {[%emt 0:02:35]} Bxf1 {[%emt 0:03:38]} 25. Kxf1 {[%emt 0:00:18]} a4 {[%emt 0:01:50]} 26. Rb7 {[%emt 0:13:02]} Rfc8 {[%emt 0:01:48]} 27. Re4 {[%emt 0:06:13]} a3 {[%emt 0:03:11]} 28. Ke2 {[%emt 0:02:20]} Re8 {[%emt 0:01:46]} 29. Rxe8+ {[%emt 0:01:11]} Rxe8+ {[%emt 0:00:01]} 30. Kd3 {[%emt 0:00:15]} f5 {[%emt 0:00:57]} 31. Rd7 {[%emt 0:04:04]} Bf8 {[%emt 0:00:24]} 32. Rd8 {[%emt 0:02:05]} Re1 {[%emt 0:04:05]} 33. d6 {[%emt 0:01:00]} Kf7 {[%emt 0:01:39]} 34. d7 {[%emt 0:00:35]} Be7 {[%emt 0:00:18]} 35. Ra8 {[%emt 0:00:11]} Rd1+ {[%emt 0:00:50]} 36. Kc2 {[%emt 0:00:23]} Rd6 {[%emt 0:00:29]} 37. d8=Q {[%emt 0:00:12]} Bxd8 {[%emt 0:00:06]} 38. Nxd8+ {[%emt 0:00:10]} Ke7 {[%emt 0:00:47]} 39. Nb7 {[%emt 0:00:29]} Rb6 {[%emt 0:00:01]} 40. Nxc5 {[%emt 0:00:38]} Rb2+ {[%emt 0:00:01]} 41. Kc3 {[%emt 0:00:26]} Rxf2 {[%emt 0:00:21]} 42. Rxa3 {[%emt 0:00:09]} Rxh2 {[%emt 0:00:16]} 43. Kd4 {[%emt 0:00:44]} Kf7 {[%emt 0:01:59]} 44. Ra7+ {[%emt 0:00:46]} Kg6 {[%emt 0:00:27]} 45. Ne6 {[%emt 0:00:26]} h5 {[%emt 0:00:31]} 46. Nf4+ {[%emt 0:00:32]} Kh6 {[%emt 0:00:31]} 47. Ke5 {[%emt 0:00:57]} Rb2 {[%emt 0:00:29]} 48. Kxf5 {[%emt 0:00:49]} Rb5+ {[%emt 0:00:30]} 49. Ke4 {[%emt 0:00:04]} Rg5 {[%emt 0:00:32]} 50. Kf3 {[%emt 0:00:10]} Rf5 {[%emt 0:00:07]} 51. Kg2 {[%emt 0:00:35]} h4 {[%emt 0:00:23]} 52. Kh3 {[%emt 0:01:03]} hxg3 {[%emt 0:00:18]} 53. Kxg3 {[%emt 0:00:03]} Rf6 {[%emt 0:00:56]} 54. a4 {[%emt 0:00:29]} g5 {[%emt 0:00:21]} 55. Ng2 {[%emt 0:00:11]} Rb6 {[%emt 0:00:32]} 56. Ne3 {[%emt 0:00:21]} 1-0

[Event "18th Caspian Cup-A 2020"]
[Site "Rasht"]
[Date "2020.02.19"]
[Round "9.5"]
[White "Quparadze, Giga"]
[Black "Omidi, Arya"]
[Result "1/2-1/2"]
[ECO "B01"]
[WhiteElo "2462"]
[BlackElo "2317"]
[Annotator "ChessBase"]
[PlyCount "221"]
[EventDate "2020.02.14"]
[EventType "swiss"]
[EventCountry "IRI"]
[SourceTitle "playchess.com"]
[Source "ChessBase"]
[SourceQuality "1"]
[TimeControl "5400+30"]

1. e4 {[%emt 0:00:00]} d5 {[%emt 0:04:10]} 2. exd5 {[%emt 0:00:00]} Qxd5 {[%emt 0:00:06]} 3. Nc3 {[%emt 0:00:00]} Qa5 {[%emt 0:00:04]} 4. d4 {[%emt 0:00:00]} Nf6 {[%emt 0:00:04]} 5. Bd2 {[%emt 0:00:23]} c6 {[%emt 0:00:36]} 6. Nf3 {[%emt 0:01:34]} Bf5 {[%emt 0:00:20]} 7. Bc4 {[%emt 0:00:16]} Nbd7 {[%emt 0:01:20]} 8. Qe2 {[%emt 0:02:00]} Qc7 {[%emt 0:00:23]} 9. O-O-O {[%emt 0:01:51]} e6 {[%emt 0:00:55]} 10. Nh4 {[%emt 0:00:10]} Bg6 {[%emt 0:00:05]} 11. g3 {[%emt 0:04:08]} O-O-O {[%emt 0:01:18]} 12. Bb3 {[%emt 0:01:22]} Nb6 {[%emt 0:03:41]} 13. Nxg6 {[%emt 0:00:07]} hxg6 {[%emt 0:00:01]} 14. Bg5 {[%emt 0:00:22]} Be7 {[%emt 0:00:28]} 15. h4 {[%emt 0:00:04]} Rd7 {[%emt 0:00:15]} 16. Ne4 {[%emt 0:01:09]} Qd8 {[%emt 0:03:22]} 17. Nc5 {[%emt 0:00:51]} Bxc5 {[%emt 0:12:22]} 18. dxc5 {[%emt 0:00:05]} Nbd5 {[%emt 0:00:22]} 19. c4 {[%emt 0:00:06]} Nc7 {[%emt 0:00:14]} 20. Qe5 {[%emt 0:00:41]} Rxd1+ {[%emt 0:01:55]} 21. Rxd1 {[%emt 0:00:07]} Qe7 {[%emt 0:00:04]} 22. Bc2 {[%emt 0:01:16]} Rd8 {[%emt 0:03:36]} 23. Rd6 {[%emt 0:00:35]} Nce8 {[%emt 0:00:24]} 24. Rxd8+ {[%emt 0:01:19]} Qxd8 {[%emt 0:00:01]} 25. a3 {[%emt 0:00:08]} Nd7 {[%emt 0:01:20]} 26. Qe1 {[%emt 0:01:25]} f6 {[%emt 0:00:16]} 27. Be3 {[%emt 0:00:09]} Nc7 {[%emt 0:01:17]} 28. Qe2 {[%emt 0:01:39]} Qe8 {[%emt 0:00:17]} 29. Qg4 {[%emt 0:00:16]} f5 {[%emt 0:01:39]} 30. Qd1 {[%emt 0:01:00]} e5 {[%emt 0:01:11]} 31. h5 {[%emt 0:00:05]} Ne6 {[%emt 0:01:26]} 32. hxg6 {[%emt 0:02:29]} Qxg6 {[%emt 0:00:06]} 33. g4 {[%emt 0:00:45]} e4 {[%emt 0:10:37]} 34. f3 {[%emt 0:00:10]} Nexc5 {[%emt 0:03:05]} 35. gxf5 {[%emt 0:00:06]} Qxf5 {[%emt 0:00:09]} 36. fxe4 {[%emt 0:00:06]} Qe6 {[%emt 0:05:02]} 37. Qd4 {[%emt 0:06:32]} Qf6 {[%emt 0:02:09]} 38. Kd2 {[%emt 0:00:07]} b6 {[%emt 0:04:39]} 39. b4 {[%emt 0:03:47]} Ne6 {[%emt 0:01:06]} 40. Qxf6 {[%emt 0:00:34]} gxf6 {[%emt 0:00:09]} 41. Kc3 {[%emt 0:00:04]} c5 {[%emt 0:00:42]} 42. Bd1 {[%emt 0:00:42]} Ne5 {[%emt 0:00:39]} 43. Bc2 {[%emt 0:00:38]} Kc7 {[%emt 0:00:06]} 44. b5 {[%emt 0:00:17]} Ng4 {[%emt 0:00:48]} 45. Bc1 {[%emt 0:01:16]} Kd6 {[%emt 0:01:10]} 46. Kd3 {[%emt 0:01:58]} Ke5 {[%emt 0:12:07]} 47. Bb2+ {[%emt 0:00:04]} Nd4 {[%emt 0:07:51]} 48. a4 {[%emt 0:00:19]} Nf2+ {[%emt 0:02:09]} 49. Ke3 {[%emt 0:00:36]} Nh3 {[%emt 0:00:53]} 50. Bc3 {[%emt 0:01:16]} Nf4 {[%emt 0:03:22]} 51. Bd3 {[%emt 0:01:26]} Ng2+ {[%emt 0:00:22]} 52. Kf2 {[%emt 0:00:32]} Nf4 {[%emt 0:00:02]} 53. Ke3 {[%emt 0:00:06]} Ng6 {[%emt 0:01:45]} 54. a5 {[%emt 0:00:14]} Nf4 {[%emt 0:06:12]} 55. Bf1 {[%emt 0:00:38]} Nfe6 {[%emt 0:00:46]} 56. a6 {[%emt 0:00:08]} Nf4 {[%emt 0:01:43]} 57. Bb2 {[%emt 0:00:13]} Nfe6 {[%emt 0:00:22]} 58. Ba1 {[%emt 0:00:07]} Kd6 {[%emt 0:01:03]} 59. Bc3 {[%emt 0:00:08]} Ke5 {[%emt 0:03:30]} 60. Bh3 {[%emt 0:00:07]} Nf4 {[%emt 0:00:10]} 61. Bc8 {[%emt 0:00:26]} Ng2+ {[%emt 0:00:37]} 62. Kf2 {[%emt 0:00:05]} Nf4 {[%emt 0:00:21]} 63. Bb7 {[%emt 0:00:06]} Nfe6 {[%emt 0:01:19]} 64. Ke3 {[%emt 0:00:40]} Ng5 {[%emt 0:00:15]} 65. Ba5 {[%emt 0:00:47]} Nge6 {[%emt 0:00:47]} 66. Bc3 {[%emt 0:00:14]} Nf4 {[%emt 0:00:44]} 67. Bd5 {[%emt 0:00:42]} Ng2+ {[%emt 0:00:12]} 68. Kf2 {[%emt 0:00:11]} Nf4 {[%emt 0:00:17]} 69. Bd2 {[%emt 0:00:32]} Nb3 {[%emt 0:00:46]} 70. Be3 {[%emt 0:01:44]} Nd4 {[%emt 0:00:56]} 71. Kg3 {[%emt 0:00:13]} Nxd5 {[%emt 0:02:10]} 72. exd5 {[%emt 0:00:06]} Nxb5 {[%emt 0:00:23]} 73. Bxc5 {[%emt 0:00:56]} Nc7 {[%emt 0:00:16]} 74. d6 {[%emt 0:00:25]} Ne6 {[%emt 0:00:31]} 75. Bxb6 {[%emt 0:00:07]} Kxd6 {[%emt 0:00:13]} 76. Bxa7 {[%emt 0:00:06]} Kc6 {[%emt 0:00:31]} 77. Be3 {[%emt 0:00:15]} f5 {[%emt 0:00:54]} 78. Kf3 {[%emt 0:00:06]} Nc7 {[%emt 0:00:43]} 79. a7 {[%emt 0:00:06]} Kb7 {[%emt 0:00:01]} 80. Kf4 {[%emt 0:00:08]} Ne8 {[%emt 0:00:21]} 81. Ke5 {[%emt 0:00:09]} f4 {[%emt 0:00:48]} 82. Kxf4 {[%emt 0:00:45]} Nd6 {[%emt 0:00:51]} 83. c5 {[%emt 0:00:02]} Nb5 {[%emt 0:00:27]} 84. c6+ {[%emt 0:00:11]} Ka8 {[%emt 0:00:07]} 85. Ke5 {[%emt 0:00:11]} Nc7 {[%emt 0:00:08]} 86. Kd6 {[%emt 0:00:18]} Ne8+ {[%emt 0:00:26]} 87. Kd7 {[%emt 0:01:24]} Nc7 {[%emt 0:00:36]} 88. Bf4 {[%emt 0:00:29]} Nd5 {[%emt 0:00:54]} 89. Kd6 {[%emt 0:00:08]} Nb6 {[%emt 0:00:33]} 90. Be3 {[%emt 0:02:08]} Nc8+ {[%emt 0:00:38]} 91. Ke6 {[%emt 0:00:27]} Ne7 {[%emt 0:00:22]} 92. c7 {[%emt 0:00:11]} Nc8 {[%emt 0:00:04]} 93. Bd4 {[%emt 0:00:17]} Kb7 {[%emt 0:00:09]} 94. a8=Q+ {[%emt 0:00:17]} Kxa8 {[%emt 0:00:05]} 95. Kd7 {[%emt 0:00:06]} Kb7 {[%emt 0:00:03]} 96. Bc5 {[%emt 0:00:11]} Ka8 {[%emt 0:00:02]} 97. Kc6 {[%emt 0:00:11]} Nb6 {[%emt 0:00:06]} 98. Kd6 {[%emt 0:01:07]} Nc8+ {[%emt 0:00:06]} 99. Kd7 {[%emt 0:00:07]} Kb7 {[%emt 0:00:08]} 100. Kd8 {[%emt 0:00:14]} Ka8 {[%emt 0:00:08]} 101. Bb4 {[%emt 0:00:14]} Kb7 {[%emt 0:00:21]} 102. Ba5 {[%emt 0:00:05]} Na7 {[%emt 0:00:14]} 103. Kd7 {[%emt 0:00:20]} Nc8 {[%emt 0:00:21]} 104. Bd2 {[%emt 0:00:06]} Nb6+ {[%emt 0:00:07]} 105. Kd8 {[%emt 0:00:05]} Nc8 {[%emt 0:00:07]} 106. Be3 {[%emt 0:00:09]} Nd6 {[%emt 0:00:20]} 107. Bd4 {[%emt 0:00:24]} Nc8 {[%emt 0:00:08]} 108. Bc5 {[%emt 0:00:06]} Ka8 {[%emt 0:00:04]} 109. Bd4 {[%emt 0:01:40]} Kb7 {[%emt 0:00:15]} 110. Kd7 {[%emt 0:00:06]} Ka8 {[%emt 0:00:07]} 111. Kxc8 1/2-1/2

[Event "18th Caspian Cup-A 2020"]
[Site "Rasht"]
[Date "2020.02.19"]
[Round "9.6"]
[White "Babaniya, Benyamin"]
[Black "Gholami Orimi, Mahdi"]
[Result "0-1"]
[ECO "B06"]
[WhiteElo "2180"]
[BlackElo "2434"]
[Annotator "NA"]
[PlyCount "108"]
[EventDate "2020.02.14"]
[EventType "swiss"]
[EventCountry "IRI"]
[SourceTitle "playchess.com"]
[Source "ChessBase"]
[SourceQuality "1"]
[TimeControl "5400+30"]

1. e4 {[%emt 0:00:00]} g6 {[%emt 0:00:00]} 2. d4 {[%emt 0:00:00]} Bg7 {[%emt 0:00:00]} 3. Nc3 {[%emt 0:00:00]} c6 {[%emt 0:00:00]} 4. f4 {[%emt 0:01:32]} d5 {[%emt 0:00:07]} 5. e5 {[%emt 0:00:03]} Nh6 {[%emt 0:00:08]} 6. Nf3 {[%emt 0:00:16]} f6 {[%emt 0:00:09]} 7. Bd3 {[%emt 0:05:23]} Bg4 {[%emt 0:02:32]} 8. O-O {[%emt 0:02:26]} O-O {[%emt 0:00:38]} 9. Be3 {[%emt 0:03:47]} e6 {[%emt 0:13:52]} 10. Be2 {[%emt 0:10:29]} Nf5 {[%emt 0:09:08]} 11. Bf2 {[%emt 0:00:35]} Bxf3 {[%emt 0:03:50]} 12. Bxf3 {[%emt 0:00:13]} fxe5 {[%emt 0:01:32]} 13. dxe5 {[%emt 0:11:34]} Nd7 {[%emt 0:01:55]} 14. Ne2 {[%emt 0:04:07]} Kh8 {[%emt 0:24:18]} 15. Qe1 {[%emt 0:01:06]} g5 {[%emt 0:01:21]} 16. g3 {[%emt 0:02:03]} Qe8 {[%emt 0:03:25]} 17. Kh1 {[%emt 0:02:05]} Qg6 {[%emt 0:01:04]} 18. Qd1 {[%emt 0:10:49]} Nb6 {[%emt 0:04:00]} 19. fxg5 {[%emt 0:04:20]} Qxg5 {[%emt 0:01:45]} 20. Nf4 {[%emt 0:00:33]} Qh6 {[%emt 0:00:39]} 21. Qe2 {[%emt 0:03:27]} Nc4 {[%emt 0:05:16]} 22. Nh5 {[%emt 0:03:27]} Nd2 {[%emt 0:02:19]} 23. Bc5 {[%emt 0:01:45]} Nxf1 {[%emt 0:01:48]} 24. Bxf8 {[%emt 0:01:24]} N1xg3+ {[%emt 0:04:15]} 25. hxg3 {[%emt 0:00:46]} Nxg3+ {[%emt 0:00:29]} 26. Kg2 {[%emt 0:03:12]} Nxh5 {[%emt 0:00:17]} 27. Bxh5 {[%emt 0:01:03]} Rxf8 {[%emt 0:00:28]} 28. Rf1 {[%emt 0:01:44]} Rxf1 {[%emt 0:02:57]} 29. Kxf1 {[%emt 0:00:05]} Qf4+ {[%emt 0:00:21]} 30. Qf3 {[%emt 0:00:56]} Qxf3+ {[%emt 0:07:03]} 31. Bxf3 {[%emt 0:00:07]} Kg8 {[%emt 0:00:32]} 32. b3 {[%emt 0:01:11]} Bxe5 {[%emt 0:00:03]} 33. Kg2 {[%emt 0:00:31]} Kf7 {[%emt 0:00:02]} 34. Bh5+ {[%emt 0:00:08]} Ke7 {[%emt 0:00:06]} 35. Kf3 {[%emt 0:00:12]} Bf6 {[%emt 0:00:46]} 36. Kf4 {[%emt 0:00:17]} h6 {[%emt 0:00:33]} 37. Bg6 {[%emt 0:00:52]} Kd6 {[%emt 0:00:05]} 38. Bf7 {[%emt 0:00:31]} Bg5+ {[%emt 0:00:02]} 39. Kg4 {[%emt 0:00:10]} b5 {[%emt 0:03:53]} 40. a4 {[%emt 0:00:29]} b4 {[%emt 0:01:46]} 41. Bg6 {[%emt 0:00:44]} c5 {[%emt 0:00:21]} 42. Bh7 {[%emt 0:00:51]} Ke5 {[%emt 0:00:21]} 43. Bg8 {[%emt 0:00:31]} c4 {[%emt 0:00:30]} 44. Kf3 {[%emt 0:00:01]} cxb3 {[%emt 0:00:31]} 45. cxb3 {[%emt 0:00:07]} h5 {[%emt 0:00:03]} 46. Bf7 {[%emt 0:00:36]} h4 {[%emt 0:00:01]} 47. Kg4 {[%emt 0:00:12]} Bd8 {[%emt 0:00:14]} 48. Bg8 {[%emt 0:00:10]} Kd6 {[%emt 0:00:02]} 49. Bh7 {[%emt 0:01:10]} e5 {[%emt 0:00:08]} 50. Bf5 {[%emt 0:00:20]} Kc5 {[%emt 0:00:07]} 51. Kf3 {[%emt 0:00:28]} Kd4 {[%emt 0:00:05]} 52. Be6 {[%emt 0:00:02]} e4+ {[%emt 0:00:13]} 53. Ke2 {[%emt 0:00:07]} Ke5 {[%emt 0:00:03]} 54. Bc8 {[%emt 0:00:24]} d4 {[%emt 0:00:02]} 0-1

[Event "18th Caspian Cup-A 2020"]
[Site "Rasht"]
[Date "2020.02.19"]
[Round "9.7"]
[White "Daghli, Arash"]
[Black "Khoshkalam, Seyed Mehrab"]
[Result "1-0"]
[ECO "A85"]
[WhiteElo "2424"]
[BlackElo "2280"]
[Annotator "NA"]
[PlyCount "71"]
[EventDate "2020.02.14"]
[EventType "swiss"]
[EventCountry "IRI"]
[SourceTitle "playchess.com"]
[Source "ChessBase"]
[SourceQuality "1"]
[TimeControl "5400+30"]

1. d4 f5 2. c4 {[%emt 0:00:00]} Nf6 {[%emt 0:00:00]} 3. Nc3 {[%emt 0:00:14]} g6 {[%emt 0:00:08]} 4. g3 {[%emt 0:00:30]} Bg7 {[%emt 0:00:30]} 5. Bg2 {[%emt 0:00:30]} O-O {[%emt 0:00:30]} 6. Nf3 {[%emt 0:00:30]} d6 {[%emt 0:00:30]} 7. O-O {[%emt 0:00:30]} Qe8 {[%emt 0:00:30]} 8. b3 {[%emt 0:00:30]} c6 {[%emt 0:00:30]} 9. Bb2 {[%emt 0:00:30]} Na6 {[%emt 0:00:30]} 10. Re1 {[%emt 0:00:30]} e5 {[%emt 0:00:30]} 11. e4 {[%emt 0:00:30]} f4 {[%emt 0:00:30]} 12. Ba3 {[%emt 0:00:30]} fxg3 {[%emt 0:00:30]} 13. hxg3 {[%emt 0:00:30]} exd4 {[%emt 0:00:30]} 14. e5 {[%emt 0:00:30]} Ng4 {[%emt 0:00:30]} 15. exd6 {[%emt 0:00:30]} Qd8 {[%emt 0:00:30]} 16. d7 {[%emt 0:00:30]} Bxd7 {[%emt 0:00:30]} 17. Bxf8 {[%emt 0:00:30]} Qxf8 {[%emt 0:00:30]} 18. Ne4 {[%emt 0:00:30]} c5 {[%emt 0:00:30]} 19. Nh2 {[%emt 0:00:30]} Nxh2 {[%emt 0:00:30]} 20. Kxh2 {[%emt 0:00:30]} Nc7 {[%emt 0:00:30]} 21. Qf3 {[%emt 0:00:30]} Bf5 {[%emt 0:00:30]} 22. Kg1 {[%emt 0:00:30]} h5 {[%emt 0:00:30]} 23. Qf4 {[%emt 0:00:30]} Ne6 {[%emt 0:00:30]} 24. Qh4 {[%emt 0:00:30]} Rd8 {[%emt 0:00:30]} 25. Rad1 {[%emt 0:00:30]} d3 {[%emt 0:00:30]} 26. Re3 {[%emt 0:00:30]} d2 {[%emt 0:00:30]} 27. Rxd2 {[%emt 0:00:30]} Rxd2 {[%emt 0:00:30]} 28. Nxd2 {[%emt 0:00:30]} Bf6 {[%emt 0:00:30]} 29. Qh1 {[%emt 0:00:30]} Bd4 {[%emt 0:00:30]} 30. Re2 {[%emt 0:00:30]} Bd3 {[%emt 0:00:30]} 31. Rxe6 {[%emt 0:00:30]} Bxf2+ {[%emt 0:00:30]} 32. Kh2 {[%emt 0:00:30]} h4 {[%emt 0:00:30]} 33. Bf3 {[%emt 0:00:30]} Bxg3+ {[%emt 0:00:30]} 34. Kg2 {[%emt 0:00:30]} Qf4 {[%emt 0:00:30]} 35. Ne4 {[%emt 0:00:30]} h3+ {[%emt 0:00:30]} 36. Qxh3 {[%emt 0:00:30]} 1-0

[Event "18th Caspian Cup-A 2020"]
[Site "Rasht"]
[Date "2020.02.19"]
[Round "9.8"]
[White "Evdokimov, Alexander A."]
[Black "Azadi, Amirmohammad"]
[Result "0-1"]
[ECO "E61"]
[WhiteElo "2490"]
[BlackElo "2155"]
[Annotator "ChessBase"]
[PlyCount "94"]
[EventDate "2020.02.14"]
[EventType "swiss"]
[EventCountry "IRI"]
[SourceTitle "playchess.com"]
[Source "ChessBase"]
[SourceQuality "1"]
[TimeControl "5400+30"]

1. d4 {[%emt 0:00:00]} Nf6 {[%emt 0:00:00]} 2. c4 {[%emt 0:00:00]} g6 {[%emt 0:00:10]} 3. Nc3 {[%emt 0:00:38]} c5 {[%emt 0:00:06]} 4. d5 {[%emt 0:00:24]} d6 {[%emt 0:00:13]} 5. e4 {[%emt 0:00:38]} Bg7 {[%emt 0:00:11]} 6. h3 {[%emt 0:01:17]} O-O {[%emt 0:00:25]} 7. Nf3 {[%emt 0:00:03]} Na6 {[%emt 0:01:06]} 8. Bd3 {[%emt 0:00:30]} Nc7 {[%emt 0:00:18]} 9. O-O {[%emt 0:04:17]} a6 {[%emt 0:00:13]} 10. a4 {[%emt 0:04:26]} e5 {[%emt 0:04:30]} 11. Bg5 {[%emt 0:07:21]} h6 {[%emt 0:00:52]} 12. Be3 {[%emt 0:02:45]} Nh5 {[%emt 0:01:17]} 13. Qd2 {[%emt 0:05:19]} g5 {[%emt 0:01:59]} 14. Ne2 {[%emt 0:05:23]} a5 {[%emt 0:02:46]} 15. Nh2 {[%emt 0:05:08]} Nf4 {[%emt 0:02:48]} 16. Ng3 {[%emt 0:00:06]} Ne8 {[%emt 0:13:31]} 17. Be2 {[%emt 0:03:04]} Nf6 {[%emt 0:03:33]} 18. Ng4 {[%emt 0:04:47]} Nh7 {[%emt 0:13:10]} 19. Nh2 {[%emt 0:03:54]} Nf6 {[%emt 0:02:30]} 20. Bg4 {[%emt 0:03:10]} Nxe4 {[%emt 0:09:34]} 21. Nxe4 {[%emt 0:00:48]} f5 {[%emt 0:00:02]} 22. Bf3 {[%emt 0:13:34]} fxe4 {[%emt 0:00:31]} 23. Bxe4 {[%emt 0:00:00]} Ra6 {[%emt 0:04:21]} 24. Ra3 {[%emt 0:02:50]} Bd7 {[%emt 0:01:26]} 25. Qc2 {[%emt 0:03:06]} Rb6 {[%emt 0:01:39]} 26. Re1 {[%emt 0:00:17]} Qf6 {[%emt 0:02:12]} 27. Ng4 {[%emt 0:04:27]} Qf7 {[%emt 0:00:33]} 28. Rc3 {[%emt 0:01:15]} h5 {[%emt 0:04:33]} 29. Nh2 {[%emt 0:00:05]} Bh6 {[%emt 0:00:45]} 30. Bxf4 {[%emt 0:03:36]} gxf4 {[%emt 0:03:29]} 31. Bg6 {[%emt 0:00:40]} Qg7 {[%emt 0:00:17]} 32. Bxh5 {[%emt 0:00:07]} Bf5 {[%emt 0:01:20]} 33. Qe2 {[%emt 0:00:14]} e4 {[%emt 0:01:02]} 34. Bg4 {[%emt 0:00:51]} Bh7 {[%emt 0:01:28]} 35. Be6+ {[%emt 0:05:34]} Kh8 {[%emt 0:00:01]} 36. Ng4 {[%emt 0:00:05]} Bg5 {[%emt 0:02:00]} 37. Ra1 {[%emt 0:00:02]} Qd4 {[%emt 0:02:28]} 38. Kh2 {[%emt 0:06:16]} f3 {[%emt 0:04:17]} 39. gxf3 {[%emt 0:00:17]} Bd2 {[%emt 0:03:28]} 40. Rca3 {[%emt 0:05:50]} Rxb2 {[%emt 0:00:30]} 41. Qd1 {[%emt 0:00:06]} e3 {[%emt 0:09:35]} 42. Kg2 {[%emt 0:03:29]} Be4 {[%emt 0:03:12]} 43. fxe4 {[%emt 0:03:22]} Qxe4+ {[%emt 0:00:18]} 44. Kh2 {[%emt 0:00:09]} Bc3 {[%emt 0:01:58]} 45. R3a2 {[%emt 0:01:23]} Be5+ {[%emt 0:00:52]} 46. Kg1 {[%emt 0:00:29]} exf2+ {[%emt 0:00:03]} 47. Nxf2 {[%emt 0:00:06]} Bh2+ {[%emt 0:00:05]} 0-1